[Event "Late-Titled-Tuesday-Blitz-January-30-2024"]
[Site "Chess.com"]
[Date "2024.01.30"]
[Round "2"]
[White "a-z30"]
[Black "GothamChess"]
[Result "1/2-1/2"]
[WhiteElo "2519"]
[BlackElo "2748"]
[TimeControl "180+1"]
[EndTime "14:18:42 PST"]
[Termination "Game drawn - insufficient material"]

1. d3 {[%clk 0:03:00.9]} 1... b6 {[%clk 0:02:59.7]} 2. Nf3 {[%clk 0:03:01.6]}
2... Bb7 {[%clk 0:03:00.4]} 3. g3 {[%clk 0:03:02]} 3... g6 {[%clk 0:03:01]} 4.
Bg2 {[%clk 0:03:02.5]} 4... Bg7 {[%clk 0:03:01.7]} 5. O-O {[%clk 0:03:02.9]}
5... f5 {[%clk 0:03:02.1]} 6. c4 {[%clk 0:03:03.3]} 6... Nf6 {[%clk 0:03:01.7]}
7. Nc3 {[%clk 0:03:03.9]} 7... O-O {[%clk 0:03:02.5]} 8. Qc2 {[%clk 0:03:02.6]}
8... d6 {[%clk 0:03:02.6]} 9. b3 {[%clk 0:03:02.8]} 9... e5 {[%clk 0:03:02]} 10.
Bb2 {[%clk 0:03:02.9]} 10... Nc6 {[%clk 0:03:01.9]} 11. Nd5 {[%clk 0:03:00]}
11... Ne7 {[%clk 0:02:37.1]} 12. Nxf6+ {[%clk 0:02:58]} 12... Bxf6 {[%clk
0:02:36.6]} 13. b4 {[%clk 0:02:32.1]} 13... c5 {[%clk 0:02:32.9]} 14. bxc5
{[%clk 0:02:23.8]} 14... bxc5 {[%clk 0:02:31.9]} 15. Rab1 {[%clk 0:02:19]} 15...
Bc6 {[%clk 0:02:30.1]} 16. Bc3 {[%clk 0:02:15.9]} 16... Qd7 {[%clk 0:02:19.1]}
17. Qd2 {[%clk 0:02:08.2]} 17... Kg7 {[%clk 0:02:13.1]} 18. Rb2 {[%clk 0:02:01]}
18... Rab8 {[%clk 0:02:11.9]} 19. Rfb1 {[%clk 0:02:00.2]} 19... Rxb2 {[%clk
0:02:07.6]} 20. Qxb2 {[%clk 0:02:01.1]} 20... Qc7 {[%clk 0:01:53.7]} 21. Ne1
{[%clk 0:01:59.9]} 21... Bxg2 {[%clk 0:01:49.7]} 22. Nxg2 {[%clk 0:02:00.8]}
22... d5 {[%clk 0:01:44.9]} 23. cxd5 {[%clk 0:01:55.7]} 23... Nxd5 {[%clk
0:01:42.6]} 24. Qb7 {[%clk 0:01:40.7]} 24... Qxb7 {[%clk 0:01:37.4]} 25. Rxb7+
{[%clk 0:01:39.5]} 25... Rf7 {[%clk 0:01:38.3]} 26. Rxf7+ {[%clk 0:01:37.6]}
26... Kxf7 {[%clk 0:01:39.2]} 27. Bd2 {[%clk 0:01:34.4]} 27... Ke6 {[%clk
0:01:34.2]} 28. e4 {[%clk 0:01:31.8]} 28... Nb4 {[%clk 0:01:30.7]} 29. Bxb4
{[%clk 0:01:21.7]} 29... cxb4 {[%clk 0:01:30.8]} 30. Ne3 {[%clk 0:01:20.7]}
30... a5 {[%clk 0:01:28.4]} 31. Nc4 {[%clk 0:01:17.4]} 31... a4 {[%clk
0:01:26.8]} 32. Kf1 {[%clk 0:01:17.4]} 32... Kd7 {[%clk 0:01:17.9]} 33. Nb6+
{[%clk 0:01:12.3]} 33... Kc6 {[%clk 0:01:15.2]} 34. Nxa4 {[%clk 0:01:13.2]}
34... Kb5 {[%clk 0:01:02.2]} 35. Nb2 {[%clk 0:01:11.8]} 35... Bg5 {[%clk
0:00:56.2]} 36. Ke2 {[%clk 0:01:07.4]} 36... Bc1 {[%clk 0:00:52.3]} 37. Nc4
{[%clk 0:01:05.8]} 37... fxe4 {[%clk 0:00:51.5]} 38. Nxe5 {[%clk 0:01:04.4]}
38... exd3+ {[%clk 0:00:32.9]} 39. Kxd3 {[%clk 0:01:03.9]} 39... Ka4 {[%clk
0:00:29.8]} 40. Nc4 {[%clk 0:01:01.2]} 40... Bg5 {[%clk 0:00:27.4]} 41. f4
{[%clk 0:00:58.9]} 41... Be7 {[%clk 0:00:24.2]} 42. g4 {[%clk 0:00:56.8]} 42...
Kb5 {[%clk 0:00:21.4]} 43. Kd4 {[%clk 0:00:54]} 43... h5 {[%clk 0:00:13.7]} 44.
gxh5 {[%clk 0:00:49.1]} 44... gxh5 {[%clk 0:00:13.8]} 45. f5 {[%clk 0:00:48.4]}
45... h4 {[%clk 0:00:13.1]} 46. Kd5 {[%clk 0:00:47.7]} 46... h3 {[%clk
0:00:10.8]} 47. Ke6 {[%clk 0:00:20.1]} 47... Bh4 {[%clk 0:00:09]} 48. Ne5 {[%clk
0:00:08.6]} 48... Ka4 {[%clk 0:00:04.3]} 49. Nf3 {[%clk 0:00:08.1]} 49... Bd8
{[%clk 0:00:04.1]} 50. Kd5 {[%clk 0:00:05.8]} 50... Ka3 {[%clk 0:00:03.2]} 51.
Kc4 {[%clk 0:00:05.8]} 51... Kxa2 {[%clk 0:00:03.5]} 52. Kxb4 {[%clk 0:00:05.9]}
52... Kb2 {[%clk 0:00:04.4]} 53. Kc4 {[%clk 0:00:06.1]} 53... Kc2 {[%clk
0:00:05]} 54. Ng1 {[%clk 0:00:04.6]} 54... Kd2 {[%clk 0:00:04.5]} 55. Nxh3
{[%clk 0:00:05.5]} 55... Ke3 {[%clk 0:00:05.2]} 56. Kd5 {[%clk 0:00:05.7]} 56...
Kf3 {[%clk 0:00:05.4]} 57. Ke6 {[%clk 0:00:04.6]} 57... Kg2 {[%clk 0:00:04.5]}
58. Nf4+ {[%clk 0:00:04.9]} 58... Kxh2 {[%clk 0:00:04.1]} 59. Nd5 {[%clk
0:00:05.8]} 59... Bg5 {[%clk 0:00:02.4]} 60. Nf4 {[%clk 0:00:04.8]} 60... Bxf4
{[%clk 0:00:01.8]} 61. f6 {[%clk 0:00:04.4]} 61... Bh6 {[%clk 0:00:02.5]} 62. f7
{[%clk 0:00:05.1]} 62... Kg3 {[%clk 0:00:02.5]} 63. Kf5 {[%clk 0:00:06]} 63...
Bf8 {[%clk 0:00:02.2]} 64. Kg6 {[%clk 0:00:06.9]} 64... Bd6 {[%clk 0:00:02.5]}
65. Kh7 {[%clk 0:00:07.8]} 65... Bc5 {[%clk 0:00:03.1]} 66. Kg8 {[%clk
0:00:08.7]} 66... Bb4 {[%clk 0:00:03.7]} 67. f8=Q {[%clk 0:00:09.6]} 67... Bxf8
{[%clk 0:00:04]} 1/2-1/2

[Event "Late-Titled-Tuesday-Blitz-January-30-2024"]
[Site "Chess.com"]
[Date "2024.01.30"]
[Round "2"]
[White "GAO"]
[Black "MKlose11"]
[Result "1/2-1/2"]
[WhiteElo "2389"]
[BlackElo "2622"]
[TimeControl "180+1"]
[EndTime "14:18:47 PST"]
[Termination "Game drawn by stalemate"]

1. d4 {[%clk 0:02:55.1]} 1... Nf6 {[%clk 0:02:58.2]} 2. e3 {[%clk 0:02:55.3]}
2... g6 {[%clk 0:02:57.7]} 3. Nf3 {[%clk 0:02:55.7]} 3... Bg7 {[%clk 0:02:58.6]}
4. Be2 {[%clk 0:02:55.3]} 4... c5 {[%clk 0:02:59.2]} 5. O-O {[%clk 0:02:54.7]}
5... cxd4 {[%clk 0:02:59.6]} 6. exd4 {[%clk 0:02:54.5]} 6... O-O {[%clk
0:03:00.5]} 7. c4 {[%clk 0:02:54.1]} 7... b6 {[%clk 0:03:01]} 8. Nc3 {[%clk
0:02:54]} 8... d5 {[%clk 0:03:01.3]} 9. Bg5 {[%clk 0:02:51.3]} 9... Bb7 {[%clk
0:03:00.1]} 10. Re1 {[%clk 0:02:51.3]} 10... Nbd7 {[%clk 0:02:59.4]} 11. h3
{[%clk 0:02:49.1]} 11... Rc8 {[%clk 0:02:59.5]} 12. Qb3 {[%clk 0:02:43.7]} 12...
dxc4 {[%clk 0:02:44.4]} 13. Bxc4 {[%clk 0:02:43.4]} 13... Bxf3 {[%clk
0:02:38.9]} 14. gxf3 {[%clk 0:02:42.6]} 14... Qc7 {[%clk 0:02:39.4]} 15. Ba6
{[%clk 0:02:35]} 15... Rce8 {[%clk 0:02:33.7]} 16. Rac1 {[%clk 0:02:35.2]} 16...
Qb8 {[%clk 0:02:16.8]} 17. Bh4 {[%clk 0:02:30]} 17... Nh5 {[%clk 0:02:07.5]} 18.
Nd5 {[%clk 0:02:21.3]} 18... e6 {[%clk 0:01:59.2]} 19. Nc7 {[%clk 0:01:56.9]}
19... Rd8 {[%clk 0:01:59.1]} 20. d5 {[%clk 0:01:49.3]} 20... Nc5 {[%clk
0:01:34.4]} 21. Rxc5 {[%clk 0:01:34.1]} 21... bxc5 {[%clk 0:01:35.3]} 22. dxe6
{[%clk 0:01:30.4]} 22... Qxb3 {[%clk 0:01:31.6]} 23. axb3 {[%clk 0:01:29.2]}
23... fxe6 {[%clk 0:01:20.8]} 24. Nxe6 {[%clk 0:01:26.8]} 24... Rde8 {[%clk
0:01:13.2]} 25. Bc4 {[%clk 0:01:03.7]} 25... Kh8 {[%clk 0:01:12.5]} 26. Ra1
{[%clk 0:01:03.1]} 26... Rf7 {[%clk 0:00:59.3]} 27. Ng5 {[%clk 0:00:53.1]} 27...
Rf4 {[%clk 0:00:54.1]} 28. Nf7+ {[%clk 0:00:45.1]} 28... Rxf7 {[%clk 0:00:38.1]}
29. Bxf7 {[%clk 0:00:46]} 29... Rf8 {[%clk 0:00:38.8]} 30. Rxa7 {[%clk
0:00:44.4]} 30... Bxb2 {[%clk 0:00:34.7]} 31. Bd5 {[%clk 0:00:35.7]} 31... Bd4
{[%clk 0:00:23.3]} 32. Rd7 {[%clk 0:00:21.1]} 32... Nf4 {[%clk 0:00:23.1]} 33.
Bg3 {[%clk 0:00:19]} 33... Nxh3+ {[%clk 0:00:20.5]} 34. Kg2 {[%clk 0:00:19.1]}
34... Nf4+ {[%clk 0:00:20.6]} 35. Bxf4 {[%clk 0:00:14.2]} 35... Rxf4 {[%clk
0:00:21.5]} 36. Bc4 {[%clk 0:00:13.2]} 36... Rf5 {[%clk 0:00:19.4]} 37. Bd3
{[%clk 0:00:12.5]} 37... Rg5+ {[%clk 0:00:19.2]} 38. Kf1 {[%clk 0:00:12.2]}
38... Rh5 {[%clk 0:00:19.4]} 39. Be4 {[%clk 0:00:11.1]} 39... Rh2 {[%clk
0:00:19.2]} 40. b4 {[%clk 0:00:09.8]} 40... Rxf2+ {[%clk 0:00:18.8]} 41. Ke1
{[%clk 0:00:10.3]} 41... Rb2 {[%clk 0:00:17.4]} 42. bxc5 {[%clk 0:00:10]} 42...
Bxc5 {[%clk 0:00:18.3]} 43. Rc7 {[%clk 0:00:09.3]} 43... Be3 {[%clk 0:00:17.4]}
44. Kf1 {[%clk 0:00:08.4]} 44... Bf4 {[%clk 0:00:17.5]} 45. Rc8+ {[%clk
0:00:08.2]} 45... Kg7 {[%clk 0:00:17.3]} 46. Rc2 {[%clk 0:00:08.5]} 46... Rb4
{[%clk 0:00:15.8]} 47. Kg2 {[%clk 0:00:07.9]} 47... Rb6 {[%clk 0:00:10.7]} 48.
Kh3 {[%clk 0:00:05.9]} 48... h5 {[%clk 0:00:10.8]} 49. Rg2 {[%clk 0:00:05.9]}
49... Kh6 {[%clk 0:00:10.5]} 50. Rxg6+ {[%clk 0:00:04.4]} 50... Rxg6 {[%clk
0:00:09.8]} 51. Bxg6 {[%clk 0:00:05.3]} 51... Kxg6 {[%clk 0:00:10.6]} 52. Kg2
{[%clk 0:00:05.7]} 52... Kg5 {[%clk 0:00:11]} 53. Kh1 {[%clk 0:00:06.6]} 53...
Kh4 {[%clk 0:00:11.3]} 54. Kg1 {[%clk 0:00:07.1]} 54... Kh3 {[%clk 0:00:11.3]}
55. Kh1 {[%clk 0:00:08]} 55... Kg3 {[%clk 0:00:11.6]} 56. Kg1 {[%clk 0:00:08.4]}
56... Bg5 {[%clk 0:00:10.7]} 57. Kh1 {[%clk 0:00:09.3]} 57... Kf2 {[%clk
0:00:10]} 58. f4 {[%clk 0:00:09.1]} 58... Bf6 {[%clk 0:00:10.3]} 59. f5 {[%clk
0:00:09.3]} 59... Kf1 {[%clk 0:00:10.6]} 60. Kh2 {[%clk 0:00:09.7]} 60... Be5+
{[%clk 0:00:10.5]} 61. Kh1 {[%clk 0:00:10.6]} 61... Bf6 {[%clk 0:00:11.4]} 62.
Kh2 {[%clk 0:00:10.4]} 62... Ke2 {[%clk 0:00:12]} 63. Kh1 {[%clk 0:00:11.3]}
63... Kd3 {[%clk 0:00:12.8]} 64. Kh2 {[%clk 0:00:11.8]} 64... Kc4 {[%clk
0:00:13.7]} 65. Kh1 {[%clk 0:00:12.7]} 65... Kb4 {[%clk 0:00:14.3]} 66. Kh2
{[%clk 0:00:13.6]} 66... Ka3 {[%clk 0:00:15.1]} 67. Kh1 {[%clk 0:00:14.5]} 67...
Ka2 {[%clk 0:00:15.9]} 68. Kh2 {[%clk 0:00:15.4]} 68... Ka1 {[%clk 0:00:16.7]}
69. Kh1 {[%clk 0:00:16.3]} 69... Kb1 {[%clk 0:00:17.4]} 70. Kh2 {[%clk
0:00:17.2]} 70... Kc2 {[%clk 0:00:18.2]} 71. Kh1 {[%clk 0:00:18.1]} 71... Kd2
{[%clk 0:00:19]} 72. Kh2 {[%clk 0:00:19]} 72... Ke3 {[%clk 0:00:19.6]} 73. Kh1
{[%clk 0:00:19.9]} 73... Kf2 {[%clk 0:00:20]} 74. Kh2 {[%clk 0:00:20.8]} 74...
Kf3 {[%clk 0:00:20.2]} 75. Kh1 {[%clk 0:00:21.7]} 75... Kg3 {[%clk 0:00:19.7]}
76. Kg1 {[%clk 0:00:21.9]} 76... Kh3 {[%clk 0:00:19]} 77. Kh1 {[%clk 0:00:22.8]}
77... h4 {[%clk 0:00:15.9]} 78. Kg1 {[%clk 0:00:23.7]} 78... Bd4+ {[%clk
0:00:15.3]} 79. Kh1 {[%clk 0:00:24.6]} 79... Kg3 {[%clk 0:00:15.7]} 80. f6
{[%clk 0:00:24.1]} 80... Bxf6 {[%clk 0:00:15.7]} 81. Kg1 {[%clk 0:00:24.2]}
81... h3 {[%clk 0:00:16.6]} 82. Kh1 {[%clk 0:00:25.1]} 82... h2 {[%clk
0:00:17.5]} 1/2-1/2

[Event "Late-Titled-Tuesday-Blitz-January-30-2024"]
[Site "Chess.com"]
[Date "2024.01.30"]
[Round "2"]
[White "tarno17"]
[Black "CarlosjPineror"]
[Result "0-1"]
[WhiteElo "2091"]
[BlackElo "2685"]
[TimeControl "180+1"]
[EndTime "14:18:51 PST"]
[Termination "CarlosjPineror won by checkmate"]

1. e4 {[%clk 0:03:00.9]} 1... c5 {[%clk 0:03:00.1]} 2. Nf3 {[%clk 0:03:00.3]}
2... e6 {[%clk 0:03:00.4]} 3. d3 {[%clk 0:02:56.5]} 3... Nc6 {[%clk 0:02:59.4]}
4. Nbd2 {[%clk 0:02:56.1]} 4... d5 {[%clk 0:03:00.1]} 5. g3 {[%clk 0:02:56.4]}
5... Nf6 {[%clk 0:03:00.7]} 6. Bg2 {[%clk 0:02:56.8]} 6... Be7 {[%clk
0:03:01.4]} 7. O-O {[%clk 0:02:57.2]} 7... O-O {[%clk 0:03:02.2]} 8. Re1 {[%clk
0:02:40]} 8... b5 {[%clk 0:03:01.8]} 9. exd5 {[%clk 0:02:31.1]} 9... exd5 {[%clk
0:03:02.7]} 10. d4 {[%clk 0:02:24.6]} 10... Bg4 {[%clk 0:02:51.5]} 11. h3 {[%clk
0:02:10.3]} 11... Bh5 {[%clk 0:02:49.6]} 12. g4 {[%clk 0:01:55.5]} 12... Bg6
{[%clk 0:02:47.1]} 13. c3 {[%clk 0:01:45]} 13... cxd4 {[%clk 0:02:29.6]} 14.
Nxd4 {[%clk 0:01:40.8]} 14... Nxd4 {[%clk 0:02:29.1]} 15. cxd4 {[%clk
0:01:40.4]} 15... Bd6 {[%clk 0:02:14.1]} 16. Nf3 {[%clk 0:01:34.6]} 16... Be4
{[%clk 0:01:59.7]} 17. Bg5 {[%clk 0:01:22.5]} 17... h6 {[%clk 0:01:59]} 18. Bh4
{[%clk 0:01:12.7]} 18... g5 {[%clk 0:01:58.9]} 19. Nxg5 {[%clk 0:00:37.9]} 19...
hxg5 {[%clk 0:01:57.7]} 20. Bxg5 {[%clk 0:00:38.8]} 20... Be7 {[%clk 0:01:54.4]}
21. Bxf6 {[%clk 0:00:25.2]} 21... Bxf6 {[%clk 0:01:53.8]} 22. Bxe4 {[%clk
0:00:26.1]} 22... dxe4 {[%clk 0:01:54.4]} 23. Rxe4 {[%clk 0:00:27]} 23... Qd5
{[%clk 0:01:48.6]} 24. Qf3 {[%clk 0:00:19.8]} 24... Bg7 {[%clk 0:01:47.2]} 25.
Rd1 {[%clk 0:00:16.3]} 25... Rad8 {[%clk 0:01:46.9]} 26. Qe3 {[%clk 0:00:14.9]}
26... Qxa2 {[%clk 0:01:43.8]} 27. Rd2 {[%clk 0:00:10.7]} 27... Qd5 {[%clk
0:01:42.2]} 28. h4 {[%clk 0:00:10.5]} 28... f5 {[%clk 0:01:31.5]} 29. Re7 {[%clk
0:00:05.1]} 29... fxg4 {[%clk 0:01:22.7]} 30. Rc2 {[%clk 0:00:04.3]} 30... Rf3
{[%clk 0:00:48.4]} 31. Qe2 {[%clk 0:00:02]} 31... Bxd4 {[%clk 0:00:38.7]} 32.
Re8+ {[%clk 0:00:02.5]} 32... Rxe8 {[%clk 0:00:37.4]} 33. Qxe8+ {[%clk
0:00:03.4]} 33... Rf8 {[%clk 0:00:36.6]} 34. Qg6+ {[%clk 0:00:03.3]} 34... Bg7
{[%clk 0:00:35]} 35. Rc7 {[%clk 0:00:03.4]} 35... Qe5 {[%clk 0:00:15.4]} 36.
Rxa7 {[%clk 0:00:02.6]} 36... Qf6 {[%clk 0:00:13.3]} 37. Qxf6 {[%clk 0:00:02.5]}
37... Rxf6 {[%clk 0:00:11.5]} 38. Ra8+ {[%clk 0:00:02.5]} 38... Kh7 {[%clk
0:00:11.4]} 39. Kg2 {[%clk 0:00:02.5]} 39... Rf4 {[%clk 0:00:11]} 40. Kg3 {[%clk
0:00:02.8]} 40... Rb4 {[%clk 0:00:11.5]} 41. Rb8 {[%clk 0:00:01.9]} 41... Bxb2
{[%clk 0:00:09.7]} 42. Rb7+ {[%clk 0:00:01.3]} 42... Bg7 {[%clk 0:00:08.2]} 43.
h5 {[%clk 0:00:01.3]} 43... Kh6 {[%clk 0:00:08.3]} 44. Kh4 {[%clk 0:00:01.8]}
44... Bf6+ {[%clk 0:00:08.1]} 45. Kg3 {[%clk 0:00:01.7]} 45... Kxh5 {[%clk
0:00:07.6]} 46. Rb6 {[%clk 0:00:02.4]} 46... Be5+ {[%clk 0:00:07]} 47. Kg2
{[%clk 0:00:02.5]} 47... Kg5 {[%clk 0:00:07.4]} 48. Re6 {[%clk 0:00:03]} 48...
Kf5 {[%clk 0:00:07.8]} 49. Re8 {[%clk 0:00:03.7]} 49... Rb2 {[%clk 0:00:08.2]}
50. Rf8+ {[%clk 0:00:04]} 50... Ke4 {[%clk 0:00:08.8]} 51. Rg8 {[%clk
0:00:04.3]} 51... g3 {[%clk 0:00:09.4]} 52. Rg4+ {[%clk 0:00:04.3]} 52... Kd5
{[%clk 0:00:09.7]} 53. Rg5 {[%clk 0:00:02.9]} 53... Rxf2+ {[%clk 0:00:10.2]} 54.
Kg1 {[%clk 0:00:03.2]} 54... Rf3 {[%clk 0:00:09.1]} 55. Kh1 {[%clk 0:00:03.1]}
55... Rc3 {[%clk 0:00:09.6]} 56. Kg2 {[%clk 0:00:03.4]} 56... b4 {[%clk
0:00:10.3]} 57. Rg8 {[%clk 0:00:03.3]} 57... b3 {[%clk 0:00:10.8]} 58. Rd8+
{[%clk 0:00:03.7]} 58... Ke4 {[%clk 0:00:11.5]} 59. Rd1 {[%clk 0:00:04.1]} 59...
b2 {[%clk 0:00:11.6]} 60. Re1+ {[%clk 0:00:04.5]} 60... Re3 {[%clk 0:00:11.3]}
61. Rb1 {[%clk 0:00:04.9]} 61... Re2+ {[%clk 0:00:11.9]} 62. Kh1 {[%clk
0:00:04.9]} 62... Rc2 {[%clk 0:00:12.1]} 63. Re1+ {[%clk 0:00:04.9]} 63... Kf5
{[%clk 0:00:12]} 64. Rf1+ {[%clk 0:00:05.2]} 64... Bf4 {[%clk 0:00:12.5]} 65.
Rg1 {[%clk 0:00:04.7]} 65... Rc1 {[%clk 0:00:11.9]} 66. Rxc1 {[%clk 0:00:02.6]}
66... bxc1=Q+ {[%clk 0:00:12.8]} 67. Kg2 {[%clk 0:00:03.3]} 67... Qd2+ {[%clk
0:00:13]} 68. Kh3 {[%clk 0:00:04.2]} 68... Qh2# {[%clk 0:00:13.3]} 0-1

[Event "Late-Titled-Tuesday-Blitz-January-30-2024"]
[Site "Chess.com"]
[Date "2024.01.30"]
[Round "2"]
[White "cristianserban1"]
[Black "wild3000"]
[Result "1-0"]
[WhiteElo "2556"]
[BlackElo "2357"]
[TimeControl "180+1"]
[EndTime "14:19:01 PST"]
[Termination "cristianserban1 won by checkmate"]

1. Nf3 {[%clk 0:03:00.9]} 1... d5 {[%clk 0:02:29.7]} 2. g3 {[%clk 0:02:59.9]}
2... e6 {[%clk 0:02:29.1]} 3. Bg2 {[%clk 0:03:00.4]} 3... Nf6 {[%clk 0:02:30]}
4. O-O {[%clk 0:03:01.2]} 4... Be7 {[%clk 0:02:29.8]} 5. d3 {[%clk 0:03:02.1]}
5... O-O {[%clk 0:02:30.5]} 6. Nbd2 {[%clk 0:03:02.6]} 6... b6 {[%clk
0:02:31.2]} 7. e4 {[%clk 0:03:00.4]} 7... Bb7 {[%clk 0:02:31.2]} 8. Re1 {[%clk
0:03:00.5]} 8... c5 {[%clk 0:02:30.9]} 9. e5 {[%clk 0:02:58.4]} 9... Nfd7 {[%clk
0:02:30.7]} 10. Nf1 {[%clk 0:02:59.2]} 10... Nc6 {[%clk 0:02:30.4]} 11. h4
{[%clk 0:02:59.8]} 11... Qc7 {[%clk 0:02:29.7]} 12. Bf4 {[%clk 0:02:59.6]} 12...
b5 {[%clk 0:02:30.4]} 13. a3 {[%clk 0:02:56.7]} 13... a5 {[%clk 0:02:30]} 14. c3
{[%clk 0:02:54.4]} 14... b4 {[%clk 0:02:30.2]} 15. axb4 {[%clk 0:02:54.7]} 15...
axb4 {[%clk 0:02:30.3]} 16. Qd2 {[%clk 0:02:55.4]} 16... Rxa1 {[%clk 0:02:29.1]}
17. Rxa1 {[%clk 0:02:55.3]} 17... Ra8 {[%clk 0:02:29.7]} 18. Rxa8+ {[%clk
0:02:54.6]} 18... Bxa8 {[%clk 0:02:30.6]} 19. N1h2 {[%clk 0:02:44.8]} 19... bxc3
{[%clk 0:02:30.5]} 20. bxc3 {[%clk 0:02:45.1]} 20... Qa5 {[%clk 0:02:30.5]} 21.
h5 {[%clk 0:02:39.8]} 21... d4 {[%clk 0:02:24.5]} 22. c4 {[%clk 0:02:39]} 22...
Qxd2 {[%clk 0:02:21.5]} 23. Nxd2 {[%clk 0:02:39.9]} 23... Bb7 {[%clk 0:02:18.2]}
24. g4 {[%clk 0:02:28.5]} 24... Bd8 {[%clk 0:02:16.6]} 25. Nb3 {[%clk
0:02:23.7]} 25... Bc7 {[%clk 0:02:13.3]} 26. Bg3 {[%clk 0:02:08.1]} 26... Nd8
{[%clk 0:02:09.5]} 27. f4 {[%clk 0:02:05.6]} 27... Bxg2 {[%clk 0:02:06.1]} 28.
Kxg2 {[%clk 0:02:06.5]} 28... Nc6 {[%clk 0:02:03.7]} 29. Kf3 {[%clk 0:02:04.7]}
29... Nb4 {[%clk 0:01:58.1]} 30. Ke2 {[%clk 0:02:04.5]} 30... f6 {[%clk
0:01:56.9]} 31. exf6 {[%clk 0:01:54.8]} 31... gxf6 {[%clk 0:01:57.8]} 32. Nf3
{[%clk 0:01:55.2]} 32... Kf7 {[%clk 0:01:56.9]} 33. Nfd2 {[%clk 0:01:55.4]}
33... f5 {[%clk 0:01:53]} 34. g5 {[%clk 0:01:54.9]} 34... Nc6 {[%clk 0:01:47.6]}
35. Nf3 {[%clk 0:01:53.8]} 35... e5 {[%clk 0:01:40.5]} 36. fxe5 {[%clk
0:01:53.1]} 36... Ke6 {[%clk 0:01:40.7]} 37. g6 {[%clk 0:01:49.7]} 37... hxg6
{[%clk 0:01:40.7]} 38. h6 {[%clk 0:01:44.3]} 38... Nf8 {[%clk 0:01:23.3]} 39.
Nxc5+ {[%clk 0:01:42.9]} 39... Ke7 {[%clk 0:01:23.4]} 40. Ng5 {[%clk 0:01:32.3]}
40... Nxe5 {[%clk 0:01:07.9]} 41. h7 {[%clk 0:01:28.5]} 41... Nxh7 {[%clk
0:01:06.9]} 42. Nxh7 {[%clk 0:01:27.4]} 42... Bd6 {[%clk 0:01:01.6]} 43. Nb3
{[%clk 0:01:22.5]} 43... Nf7 {[%clk 0:00:56.3]} 44. Bxd6+ {[%clk 0:01:21.9]}
44... Kxd6 {[%clk 0:00:57.2]} 45. Nxd4 {[%clk 0:01:20.5]} 45... Ke5 {[%clk
0:00:52.6]} 46. Nf3+ {[%clk 0:01:18.2]} 46... Kf4 {[%clk 0:00:52.8]} 47. Nf6
{[%clk 0:01:18.8]} 47... g5 {[%clk 0:00:50.2]} 48. Nd5+ {[%clk 0:01:13.8]} 48...
Kg4 {[%clk 0:00:50]} 49. c5 {[%clk 0:01:14.3]} 49... f4 {[%clk 0:00:46.1]} 50.
c6 {[%clk 0:01:13]} 50... Nd6 {[%clk 0:00:42.9]} 51. c7 {[%clk 0:01:08.3]} 51...
Nc8 {[%clk 0:00:41.4]} 52. Nd4 {[%clk 0:01:07]} 52... Kg3 {[%clk 0:00:38.7]} 53.
Ne6 {[%clk 0:01:06.3]} 53... Kh4 {[%clk 0:00:36.8]} 54. Kf3 {[%clk 0:01:05.2]}
54... Kh5 {[%clk 0:00:36.9]} 55. d4 {[%clk 0:00:56.2]} 55... Kg6 {[%clk
0:00:33.5]} 56. Kg4 {[%clk 0:00:55.8]} 56... f3 {[%clk 0:00:28.3]} 57. Kxf3
{[%clk 0:00:52.5]} 57... Kf5 {[%clk 0:00:28.1]} 58. Nc5 {[%clk 0:00:48.1]} 58...
Kg6 {[%clk 0:00:23.7]} 59. Ne3 {[%clk 0:00:47.1]} 59... Kf6 {[%clk 0:00:22.4]}
60. Nd5+ {[%clk 0:00:41.8]} 60... Kf5 {[%clk 0:00:22.3]} 61. Nd7 {[%clk
0:00:36.8]} 61... Ke6 {[%clk 0:00:18.7]} 62. N5b6 {[%clk 0:00:36.7]} 62... Nd6
{[%clk 0:00:17.7]} 63. d5+ {[%clk 0:00:35.9]} 63... Kf5 {[%clk 0:00:17]} 64.
c8=Q {[%clk 0:00:30.3]} 64... g4+ {[%clk 0:00:17.9]} 65. Kg3 {[%clk 0:00:29.5]}
65... Nxc8 {[%clk 0:00:17.6]} 66. Nxc8 {[%clk 0:00:30.4]} 66... Ke4 {[%clk
0:00:16.4]} 67. d6 {[%clk 0:00:30.7]} 67... Kd5 {[%clk 0:00:16.8]} 68. Nf6+
{[%clk 0:00:31]} 68... Ke6 {[%clk 0:00:16.9]} 69. d7 {[%clk 0:00:29.9]} 69...
Kxf6 {[%clk 0:00:16.9]} 70. d8=Q+ {[%clk 0:00:30.1]} 70... Kf7 {[%clk
0:00:17.2]} 71. Qh4 {[%clk 0:00:31]} 71... Ke6 {[%clk 0:00:16]} 72. Qxg4+ {[%clk
0:00:30.6]} 72... Kf6 {[%clk 0:00:16.9]} 73. Nb6 {[%clk 0:00:30.7]} 73... Ke5
{[%clk 0:00:16.8]} 74. Nc4+ {[%clk 0:00:31.6]} 74... Kd5 {[%clk 0:00:17]} 75.
Nb2 {[%clk 0:00:32.5]} 75... Ke5 {[%clk 0:00:17.1]} 76. Nd1 {[%clk 0:00:32.9]}
76... Kd5 {[%clk 0:00:17.3]} 77. Nf2 {[%clk 0:00:33.6]} 77... Ke5 {[%clk
0:00:17.8]} 78. Nh1 {[%clk 0:00:34.5]} 78... Kf6 {[%clk 0:00:17.9]} 79. Qf4+
{[%clk 0:00:35.4]} 79... Ke6 {[%clk 0:00:18.1]} 80. Qg5 {[%clk 0:00:35.6]} 80...
Kd6 {[%clk 0:00:18.3]} 81. Qf5 {[%clk 0:00:36]} 81... Ke7 {[%clk 0:00:18.6]} 82.
Qg6 {[%clk 0:00:36.3]} 82... Kd7 {[%clk 0:00:18.9]} 83. Qf6 {[%clk 0:00:36.5]}
83... Kc7 {[%clk 0:00:19.8]} 84. Qe6 {[%clk 0:00:36.9]} 84... Kb7 {[%clk
0:00:20.1]} 85. Qd6 {[%clk 0:00:37.1]} 85... Ka7 {[%clk 0:00:20.5]} 86. Qc6
{[%clk 0:00:36.3]} 86... Kb8 {[%clk 0:00:20]} 87. Qd7 {[%clk 0:00:37.2]} 87...
Ka8 {[%clk 0:00:20]} 88. Kf4 {[%clk 0:00:38.1]} 88... Kb8 {[%clk 0:00:20.9]} 89.
Ke5 {[%clk 0:00:39]} 89... Ka8 {[%clk 0:00:21.7]} 90. Kd6 {[%clk 0:00:39.9]}
90... Kb8 {[%clk 0:00:22.6]} 91. Kc6 {[%clk 0:00:40.8]} 91... Ka8 {[%clk
0:00:23.5]} 92. Qb7# {[%clk 0:00:41.7]} 1-0